bitfinex/quotes_ETHUSD_20250924
["timestamp","ask_amount","ask_price","bid_price","bid_amount"]
[1758705426560,1.54400449,4181.0,4180.9,3.964]
[1758705426759,1.21098566,4181.0,4180.9,3.964]
[1758705430341,2.39182951,4180.9,4180.8,0.004]
[1758705430539,0.51598566,4180.9,4180.8,3.97]
[1758705430719,1.21098566,4180.9,4180.8,3.97]
[1758705430918,1.96021546,4180.9,4180.8,3.97]
[1758705432026,1.26521546,4180.9,4180.8,3.97]
[1758705432232,0.96188566,4180.9,4180.8,3.97]
[1758705432664,1.19028566,4180.9,4180.8,3.97]
[1758705434135,0.51598566,4180.9,4180.8,3.97]
[1758705434336,1.19028566,4180.9,4180.8,3.97]
[1758705435176,3.58211517,4180.9,4180.8,3.97]
[1758705435353,1.87661914,4180.9,4180.8,3.97]
[1758705436138,4.26844865,4180.9,4180.8,3.97]
[1758705436345,4.03924865,4180.9,4180.8,0.004]
[1758705436584,4.26764865,4180.9,4180.8,3.97]
[1758705436739,3.59334865,4180.9,4180.8,3.97]
[1758705436938,4.26764865,4180.9,4180.8,3.97]
[1758705437441,1.87581914,4180.9,4180.8,3.97]
[1758705438176,1.20151914,4180.9,4180.8,3.97]
[1758705438552,1.87581914,4180.9,4180.8,3.97]
[1758705440046,1.20151914,4180.9,4180.8,3.97]
[1758705440580,0.24157277,4181.1,4180.8,4.2018]
[1758705440742,0.91587277,4181.1,4180.8,3.97]
[1758705441349,0.001,4180.9,4180.8,6.36188672]
[1758705441979,0.001,4180.9,4180.8,7.04868672]
[1758705442179,0.001,4180.9,4180.8,3.97]
[1758705442480,0.001,4180.9,4180.8,6.59368672]
[1758705444889,0.001,4180.9,4180.8,7.04868672]
[1758705445263,0.001,4180.9,4180.8,6.59368672]
[1758705454203,0.51679231,4180.9,4180.8,6.59368672]
[1758705454374,0.001,4180.9,4180.8,6.59368672]
[1758705454575,0.51679231,4180.9,4180.8,3.97]
[1758705454806,0.001,4180.9,4180.8,3.97]
[1758705455115,0.51679231,4180.9,4180.8,3.97]
[1758705455333,1.19109231,4180.9,4180.8,0.004]
[1758705455543,1.19109231,4180.9,4180.8,3.969]
[1758705455544,1.71336523,4180.9,4180.8,3.969]
[1758705455905,1.31029231,4180.9,4180.8,3.969]
[1758705461126,1.31029231,4180.9,4180.8,0.004]
[1758705461326,1.31029231,4180.9,4180.8,3.969]
[1758705463248,1.08189231,4180.9,4180.8,3.969]
[1758705463448,1.08109231,4180.9,4180.8,3.969]
[1758705464314,1.08109231,4180.9,4180.8,0.004]
[1758705464649,1.08109231,4180.9,4180.8,3.969]
[1758705465209,0.63519231,4180.9,4180.8,3.969]
[1758705476571,0.63519231,4180.9,4180.8,6.36088672]
[1758705476768,0.63519231,4180.9,4180.8,4.214]
[1758705479786,0.63519231,4180.9,4180.8,3.969]
[1758705482585,3.46327641,4180.9,4180.8,0.004]
[1758705482874,7.76320212,4180.9,4180.8,0.004]
[1758705483183,6.90057641,4180.9,4180.8,1.271]
[1758705484141,8.19243452,4180.9,4180.8,1.271]
[1758705484338,6.90057641,4180.9,4180.8,0.004]
[1758705489033,9.30238424,4180.9,4180.8,1e-08]
[1758705489319,3.18405836,4180.5,4180.4,0.004]
[1758705489477,18.47919184,4180.5,4180.4,0.004]
[1758705489681,19.15659184,4180.5,4180.4,0.004]
[1758705489984,17.86868336,4180.5,4180.4,0.004]
[1758705490588,17.96381065,4180.5,4180.4,0.004]
[1758705490869,11.85768232,4180.5,4180.4,0.004]
[1758705491087,12.67017576,4180.5,4180.4,0.004]
[1758705491289,13.95661933,4180.5,4180.4,0.004]
[1758705492316,13.95614057,4180.5,4180.4,0.004]
[1758705492825,12.66957576,4180.5,4180.4,0.004]
[1758705493431,9.56172563,4180.5,4180.4,0.004]
[1758705493598,13.52672563,4180.5,4180.4,0.004]
[1758705493794,9.56172563,4180.5,4180.4,0.004]
[1758705494039,13.52672563,4180.5,4180.4,0.004]
[1758705494205,12.84992563,4180.5,4180.4,0.004]
[1758705494410,12.47473219,4180.5,4180.4,0.004]
[1758705494831,13.16263219,4180.5,4180.4,0.004]
[1758705495442,12.92313219,4180.5,4180.4,0.004]
[1758705495927,12.47473219,4180.5,4180.4,0.004]
[1758705496234,12.30548232,4180.5,4180.4,0.004]
[1758705497001,12.30375832,4180.5,4180.4,0.004]
[1758705498726,12.67892649,4180.5,4180.4,0.004]
[1758705499239,12.30375832,4180.5,4180.4,0.004]
[1758705502355,6.85885832,4180.5,4180.4,0.004]
[1758705502560,5.90612667,4180.5,4180.4,0.6688]
[1758705502863,5.90612667,4180.5,4180.4,0.004]
[1758705503032,5.90612667,4180.5,4180.4,0.2387]
[1758705504553,5.39205836,4180.5,4180.4,0.2387]
[1758705504781,5.90640132,4180.5,4180.4,0.2387]
[1758705505291,5.90640132,4180.5,4180.4,0.6688]
[1758705505292,3.51434296,4180.5,4180.4,0.6688]
[1758705505486,3.0,4180.5,4180.4,0.6688]
[1758705505686,3.51434296,4180.5,4180.4,0.6688]
[1758705505983,3.0,4180.5,4180.4,0.6688]
[1758705506358,3.51434296,4180.5,4180.4,0.6688]
[1758705506554,3.0,4180.5,4180.4,0.6688]
[1758705506987,3.9662,4180.9,4180.4,0.6688]
[1758705506988,0.51434296,4180.7,4180.4,0.6688]
[1758705507163,0.1192,4180.5,4180.4,0.004]
[1758705507697,0.1192,4180.5,4180.4,0.4341]
[1758705507897,0.1192,4180.5,4180.4,0.6688]
[1758705509689,0.1202,4180.5,4180.4,0.6688]
[1758705511992,0.001,4180.5,4180.4,0.6688]
[1758705512198,0.001,4180.5,4180.4,1.61112063]
[1758705512608,0.001,4180.5,4180.4,4.00323621]
[1758705512987,0.001,4180.5,4180.4,1.61112063]
[1758705513414,0.001,4180.5,4180.4,4.00323621]
[1758705515398,0.001,4180.5,4180.4,1.61112063]
[1758705515799,0.001,4180.5,4180.4,0.6688]
[1758705516011,0.001,4180.5,4180.4,0.2387]
[1758705516510,0.001,4180.5,4180.4,0.004]
[1758705517088,0.001,4180.5,4180.4,0.2387]
[1758705517779,0.0002,4180.5,4180.4,0.2387]
[1758705517979,0.0002,4180.5,4180.4,1.08967]
[1758705523732,0.0002,4180.5,4180.4,0.65957]
[1758705524828,0.0002,4180.5,4180.4,1.09357]
[1758705527309,0.0002,4180.5,4180.4,0.6727]
[1758705529631,0.0002,4180.5,4180.4,0.2387]
[1758705531330,0.51454296,4180.5,4180.4,0.2387]
[1758705531536,0.0002,4180.5,4180.4,0.2387]
[1758705531834,0.51454296,4180.5,4180.4,0.2387]
[1758705532138,0.0002,4180.5,4180.4,0.2387]
[1758705532344,0.51454296,4180.5,4180.4,0.2387]
[1758705532539,0.51454296,4180.5,4180.4,0.004]
[1758705533817,0.51454296,4180.5,4180.4,0.2422]
[1758705534739,0.51454296,4180.5,4180.4,0.6762]
[1758705535452,0.51454296,4180.5,4180.4,0.2422]
[1758705539962,0.51454296,4180.5,4180.4,0.004]
[1758705540954,0.51454296,4180.5,4180.4,0.6918]
[1758705541936,0.51454296,4180.5,4180.4,0.2455]
[1758705542457,0.51454296,4180.5,4180.4,0.6918]
[1758705543025,0.51454296,4180.5,4180.4,0.2455]
[1758705544778,0.51374296,4180.5,4180.4,0.2455]
[1758705545350,0.51374296,4180.5,4180.4,0.6918]
[1758705545549,0.51374296,4180.5,4180.4,1.51640314]
[1758705545862,0.51374296,4180.5,4180.4,3.90851872]
[1758705549354,0.51374296,4180.5,4180.4,7.87351872]
[1758705554595,0.0002,4180.9,4180.4,7.42721872]
[1758705554797,0.0002,4180.9,4180.8,2.51108672]
[1758705555093,0.0002,4180.9,4180.8,6.47608672]
[1758705555391,0.0002,4180.9,4180.8,6.97990384]
[1758705555562,0.0002,4180.9,4180.8,7.65450384]
[1758705556814,0.51617927,4180.9,4180.8,7.65450384]
[1758705557197,0.0002,4180.9,4180.8,7.65450384]
[1758705559083,0.0002,4180.9,4180.8,9.64750384]
[1758705570061,0.0002,4180.9,4180.8,15.80239899]
[1758705570219,0.0002,4180.9,4180.8,19.24989899]
[1758705571922,0.0004,4181.0,4180.9,5.39182951]
[1758705572129,0.0004,4181.0,4180.9,6.09723265]
[1758705572359,0.0004,4181.0,4180.9,6.77183265]
[1758705572533,0.0004,4181.0,4180.9,6.86768776]
[1758705573580,1e-08,4181.2,4181.0,2.3917723]
[1758705573774,1e-08,4181.5,4181.4,2.3915435]
[1758705573920,1e-08,4181.5,4181.4,16.4856712]
[1758705574124,1e-08,4181.5,4181.4,17.02845577]
[1758705574324,1e-08,4181.5,4181.4,17.35140123]
[1758705575768,1e-08,4181.5,4181.4,18.14340123]
[1758705578041,1e-08,4181.9,4181.6,3.0]
[1758705578245,1e-08,4181.9,4181.8,5.51051474]
[1758705578639,1e-08,4181.9,4181.8,6.18511474]
[1758705581294,1e-08,4181.9,4181.8,6.18511474]
[1758705581996,1e-08,4181.9,4181.8,12.78750989]
[1758705582148,1e-08,4181.9,4181.8,5.51051474]
[1758705582345,1e-08,4181.9,4181.8,6.01433186]
[1758705582551,1e-08,4181.9,4181.8,6.26003186]
[1758705586787,1e-08,4181.9,4181.8,11.92203265]
[1758705588493,1e-08,4181.9,4181.8,11.67633265]
[1758705589579,1e-08,4181.9,4181.8,6.01433186]
[1758705589783,0.70910001,4181.9,4181.8,11.96933186]
[1758705590394,0.47160001,4181.9,4181.8,11.96933186]
[1758705591508,1e-08,4181.9,4181.8,6.01433186]
[1758705591796,0.70910001,4181.9,4181.8,4.50251474]
[1758705591964,0.70910001,4181.9,4181.8,6.47351474]
[1758705592161,0.70910001,4181.9,4181.8,8.46551474]
[1758705592865,0.70910001,4181.9,4181.8,0.1192]
[1758705593085,0.70910001,4181.9,4181.8,6.0752]
[1758705593292,0.70910001,4181.9,4181.8,8.46651474]
[1758705597729,0.70910001,4181.9,4181.8,8.47051474]
[1758705598774,0.70910001,4181.9,4181.8,6.47751474]
[1758705599082,0.70830001,4181.9,4181.8,8.46951474]
[1758705601223,0.001,4182.0,4181.8,8.46951474]
[1758705601431,0.4476,4182.0,4181.9,2.39125756]
[1758705601624,0.001,4182.0,4181.9,2.39125756]
[1758705602030,0.2495,4182.0,4181.9,3.11017085]
[1758705602327,0.6961,4182.0,4181.9,0.71891329]
[1758705602532,0.6961,4182.0,4181.8,0.1232]
[1758705602707,0.6961,4182.0,4181.9,3.963]
[1758705602907,1.00481817,4182.0,4181.9,3.963]
[1758705603705,0.6961,4182.0,4181.9,3.963]
[1758705604931,0.6961,4182.0,4181.8,0.1232]
[1758705605133,0.6961,4182.0,4181.9,3.963]
[1758705610996,0.001,4182.0,4181.9,3.963]
[1758705611290,0.6961,4182.0,4181.9,3.963]
[1758705614482,0.001,4182.0,4181.9,3.963]
[1758705614985,0.6978,4182.0,4181.9,3.963]
[1758705617402,0.001,4182.0,4181.9,3.963]
[1758705618287,0.6978,4182.0,4181.9,3.963]
[1758705621182,0.6978,4182.0,4181.8,0.004]
[1758705621183,2.39125756,4181.9,4181.8,0.004]
[1758705621384,2.39125756,4181.9,4181.8,3.967]
[1758705621385,3.60236828,4181.9,4181.8,3.967]
[1758705623004,4.24650376,4181.9,4181.8,3.967]
[1758705623205,3.60236828,4181.9,4181.8,3.967]
[1758705623588,4.24650376,4181.9,4181.8,3.967]
[1758705623895,5.03347902,4181.9,4181.8,3.967]
[1758705624217,8.03347902,4181.9,4181.8,0.004]
[1758705624399,8.03347902,4181.9,4181.8,2.73]
[1758705624806,8.03347902,4181.9,4181.8,0.004]
[1758705625005,8.03347902,4181.9,4181.8,3.967]
[1758705626123,7.38854354,4181.9,4181.8,3.967]
[1758705629471,8.03267902,4181.9,4181.8,3.967]
[1758705630163,7.38854354,4181.9,4181.8,3.967]
[1758705631363,8.03267902,4181.9,4181.8,3.967]
[1758705633660,4.94542146,4181.9,4181.8,3.967]
[1758705633858,7.33667902,4181.9,4181.8,3.967]
[1758705634426,7.79077902,4181.9,4181.8,3.967]
[1758705634763,7.33667902,4181.9,4181.8,3.967]
[1758705635056,8.03347902,4181.9,4181.8,3.967]
[1758705635378,7.38934354,4181.9,4181.8,0.004]
[1758705635546,8.24819084,4181.9,4181.8,0.004]
[1758705635760,9.04019084,4181.9,4181.8,0.004]
[1758705636074,9.4696145,4181.9,4181.8,0.004]
[1758705636245,15.13161529,4181.9,4181.8,0.004]
[1758705639792,8.7728145,4181.9,4181.8,0.004]
[1758705639946,15.13161529,4181.9,4181.8,0.004]
[1758705642194,13.84334433,4181.9,4181.8,0.004]
[1758705648731,8.18134354,4181.9,4181.8,0.004]
[1758705649087,9.4696145,4181.9,4181.8,0.004]
[1758705649896,8.7728145,4181.9,4181.8,0.004]
[1758705650102,9.4797145,4181.9,4181.8,0.004]
[1758705653344,9.4789145,4181.9,4181.8,0.004]
[1758705656149,8.19064354,4181.9,4181.8,0.004]
[1758705657512,7.48474354,4181.9,4181.8,0.004]
[1758705658042,8.19064354,4181.9,4181.8,0.004]
[1758705660414,7.94584354,4181.9,4181.8,0.004]
[1758705661320,8.18474354,4181.9,4181.8,0.004]
[1758705663251,6.18342911,4181.6,4181.5,0.2454]
[1758705663436,6.1834863,4181.5,4181.4,0.004]
[1758705663641,6.3026863,4181.5,4181.4,0.2494]
[1758705665142,7.59342642,4181.5,4181.4,0.2494]
[1758705665451,8.1103267,4181.5,4181.4,0.2494]
[1758705667122,8.1103267,4181.5,4181.4,0.004]
[1758705667322,9.34525959,4181.5,4181.4,0.004]
[1758705668660,9.34525959,4181.5,4181.4,0.2494]
[1758705670262,9.34525959,4181.5,4181.4,0.004]
[1758705674844,9.34525959,4181.5,4181.4,0.2386]
[1758705677476,6.81958658,4181.5,4181.4,0.6923]
[1758705678283,0.63610028,4181.5,4181.4,0.6923]
[1758705678580,3.88901169,4181.5,4181.4,0.6923]
[1758705678781,6.88901169,4181.5,4181.4,0.6923]
[1758705680184,6.02758658,4181.5,4181.4,0.004]
[1758705680381,6.02678658,4181.5,4181.4,0.2386]
[1758705680588,6.02678658,4181.5,4181.4,0.6923]
[1758705685652,6.02678658,4181.5,4181.4,0.2386]
[1758705686371,6.02678658,4181.5,4181.4,0.6923]
[1758705686777,6.02678658,4181.5,4181.4,0.2386]
[1758705687250,6.02678658,4181.5,4181.4,0.004]
[1758705687449,6.73018658,4181.5,4181.4,0.004]
[1758705688181,6.02678658,4181.5,4181.4,0.004]
[1758705691897,7.76466244,4181.5,4181.4,0.004]
[1758705692114,9.05540256,4181.5,4181.4,0.004]
[1758705692319,9.29000256,4181.5,4181.4,0.004]
[1758705693504,7.99926244,4181.5,4181.4,0.004]
[1758705694728,9.29000256,4181.5,4181.4,0.004]
[1758705695991,7.99926244,4181.5,4181.4,0.004]
[1758705696486,7.74936244,4181.5,4181.4,0.004]
[1758705698798,7.29586244,4181.5,4181.4,0.004]
[1758705699621,7.99926244,4181.5,4181.4,0.004]
[1758705703114,8.00026244,4181.5,4181.4,0.004]
[1758705704352,6.1835435,4181.4,4181.3,0.004]
[1758705704560,8.75436383,4181.4,4181.3,0.004]
[1758705705420,9.44566383,4181.4,4181.3,0.004]
[1758705705634,8.75436383,4181.4,4181.3,0.004]
[1758705705857,9.44566383,4181.4,4181.3,0.004]
[1758705707445,9.44486383,4181.4,4181.3,0.004]
[1758705707659,9.21346383,4181.4,4181.3,0.004]
[1758705707954,9.44486383,4181.4,4181.3,0.004]
[1758705708820,9.21346383,4181.4,4181.3,0.004]
[1758705709553,8.75356383,4181.4,4181.3,0.004]
[1758705710260,10.04362537,4181.4,4181.3,0.004]
[1758705715565,10.50352537,4181.4,4181.3,0.004]
[1758705717365,10.73492537,4181.4,4181.3,0.004]
[1758705718355,10.74112537,4181.4,4181.3,0.004]
[1758705719555,10.51522537,4181.4,4181.3,0.004]
[1758705721196,10.04362537,4181.4,4181.3,0.004]
[1758705721697,10.04462537,4181.4,4181.3,0.004]
[1758705723059,10.51622537,4181.4,4181.3,0.004]
[1758705723259,10.74212537,4181.4,4181.3,0.004]
[1758705723797,6.18371509,4181.1,4181.0,0.004]
[1758705723956,6.70061537,4181.1,4181.0,0.004]
[1758705724156,7.39811537,4181.1,4181.0,0.004]
[1758705724357,8.68820065,4181.1,4181.0,0.004]
[1758705724895,7.39811537,4181.1,4181.0,0.004]
[1758705725081,9.80941644,4181.1,4181.0,0.004]
[1758705725696,9.11191644,4181.1,4181.0,0.004]
[1758705725859,6.79652886,4181.1,4181.0,0.6827]
[1758705726295,6.79652886,4181.1,4181.0,0.2484]
[1758705728328,8.0862566,4181.1,4181.0,0.2484]
[1758705728729,6.79652886,4181.1,4181.0,0.2484]
[1758705728902,8.37672849,4181.1,4181.0,0.2484]
[1758705732223,9.66645623,4181.1,4181.0,0.2484]
[1758705732544,8.37672849,4181.1,4181.0,0.2484]
[1758705733303,8.37672849,4181.1,4181.0,0.6805]
[1758705733538,9.66645623,4181.1,4181.0,0.004]
[1758705734750,9.66565623,4181.1,4181.0,0.004]
[1758705739753,9.66565623,4181.1,4181.0,0.239]
[1758705740828,9.66565623,4181.1,4181.0,0.004]
[1758705742150,9.07642849,4181.1,4181.0,0.004]
[1758705742346,10.36645893,4181.1,4181.0,0.004]
[1758705742555,10.14085893,4181.1,4181.0,0.004]
[1758705742943,9.66595893,4181.1,4181.0,0.004]
[1758705748036,8.37592849,4181.1,4181.0,0.004]
[1758705748243,6.00452886,4181.1,4181.0,0.6711]
[1758705748489,5.90861537,4181.1,4181.0,0.6711]
[1758705749120,5.90861537,4181.1,4181.0,0.004]
[1758705749270,6.70061537,4181.1,4181.0,0.004]
[1758705749617,8.66212251,4181.1,4181.0,0.004]
[1758705749982,9.02213769,4181.1,4181.0,0.004]
[1758705750189,9.24773769,4181.1,4181.0,0.004]
[1758705751715,6.18382951,4180.9,4180.8,0.004]
[1758705752005,6.70072979,4180.9,4180.8,0.004]
[1758705754308,6.70072979,4180.9,4180.8,0.239]
[1758705754514,7.43790223,4180.9,4180.8,0.239]
[1758705754807,7.19916135,4180.9,4180.8,0.6711]
[1758705757201,5.90872979,4180.9,4180.8,0.6711]
[1758705760210,5.90872979,4180.9,4180.8,0.239]
[1758705761076,5.90872979,4180.9,4180.8,0.004]
[1758705761680,6.61412979,4180.9,4180.8,0.004]
[1758705762093,5.90792979,4180.9,4180.8,0.004]
[1758705763586,5.90792979,4180.9,4180.8,0.6694]
[1758705763781,3.51690028,4180.9,4180.8,0.6694]
[1758705763986,4.37685838,4180.9,4180.8,0.2393]
[1758705764187,3.51690028,4180.9,4180.8,0.6694]
[1758705769302,3.51690028,4180.9,4180.8,0.2393]
[1758705769492,5.90872979,4180.9,4180.8,0.004]
[1758705770225,5.90872979,4180.9,4180.8,0.2393]
[1758705772523,5.90872979,4180.9,4180.8,0.6694]
[1758705772524,4.16152727,4180.9,4180.8,0.6694]
[1758705773999,6.55335678,4180.9,4180.8,0.6694]
[1758705774199,4.16152727,4180.9,4180.8,0.6694]
[1758705774526,3.51790028,4180.9,4180.8,0.6694]
[1758705776854,4.16252727,4180.9,4180.8,0.2393]
[1758705779252,6.55435678,4180.9,4180.8,0.2393]
[1758705780154,4.16252727,4180.9,4180.8,0.2393]
[1758705780556,7.65027065,4180.9,4180.8,0.004]
[1758705783237,8.51022875,4180.9,4180.8,0.004]
[1758705785361,3.51790028,4180.9,4180.8,0.2508]
[1758705785541,3.51790028,4180.9,4180.8,0.6923]
[1758705786531,1.16271249,4180.9,4180.8,0.6923]
[1758705788233,0.51790028,4180.9,4180.8,3.10810558]
[1758705788433,0.001,4180.9,4180.8,3.08418672]
[1758705788768,0.0002,4180.9,4180.8,3.08418672]
[1758705792135,0.0002,4180.9,4180.8,7.05118672]
[1758705798395,0.0002,4180.9,4180.8,7.17038672]
[1758705802985,0.0002,4180.9,4180.8,6.72888672]
[1758705803170,0.0002,4180.9,4180.8,7.16968672]
[1758705803904,0.0002,4180.9,4180.8,2.76198672]
[1758705804201,0.0002,4180.9,4180.8,8.47508672]
[1758705804401,0.0002,4180.9,4180.8,8.72198672]
[1758705805115,0.0002,4180.9,4180.8,2.51508672]
[1758705805413,0.0002,4180.9,4180.8,8.47508672]
[1758705805786,0.0002,4180.9,4180.8,8.72198672]
[1758705806187,0.0002,4180.9,4180.8,6.48208672]
[1758705806603,0.0002,4180.9,4180.8,6.36288672]
[1758705806800,0.6903,4180.9,4180.8,6.36288672]
[1758705807005,0.4553,4180.9,4180.8,6.36288672]
[1758705808518,0.4553,4180.9,4180.8,0.004]
[1758705808740,0.4553,4180.9,4180.8,5.964]
[1758705809492,0.0002,4180.9,4180.8,5.964]
[1758705809697,0.0002,4180.9,4180.8,8.35588672]
[1758705810507,0.0002,4180.9,4180.8,3.971]
[1758705810702,0.0002,4180.9,4180.8,6.36288672]
[1758705810907,0.0002,4180.9,4180.8,2.39588672]
[1758705811108,0.0002,4180.9,4180.8,6.36288672]
[1758705813227,0.0002,4180.9,4180.8,3.971]
[1758705814310,0.0002,4180.9,4180.8,6.36288672]
[1758705815990,0.51630028,4181.0,4180.8,2.39588672]
[1758705816203,0.51630028,4181.0,4180.9,3.966]
[1758705816615,0.6911,4181.1,4180.9,3.966]
[1758705819725,0.6911,4181.1,4180.9,6.35782776]
[1758705819936,0.001,4181.1,4180.9,6.60472776]
[1758705820170,0.001,4181.1,4180.9,6.35782776]
[1758705820468,0.001,4181.1,4181.0,0.2469]
[1758705822053,0.001,4181.1,4181.0,2.6386723]
[1758705822644,0.001,4181.1,4181.0,0.2469]
[1758705823368,0.001,4181.1,4180.9,3.966]
[1758705823567,0.001,4181.1,4180.9,4.2078]
[1758705823966,0.001,4181.1,4180.9,6.59962747]
[1758705825405,0.001,4181.1,4180.9,4.2078]
[1758705825703,0.001,4181.1,4181.0,3.965]
[1758705826498,0.6872,4181.1,4181.0,3.965]
[1758705828009,1.20278093,4181.1,4181.0,3.965]
[1758705828370,0.51658093,4181.1,4181.0,3.965]
[1758705829705,0.95528093,4181.1,4181.0,3.965]
[1758705830009,1.20278093,4181.1,4181.0,3.965]
[1758705831620,0.95528093,4181.1,4181.0,3.965]
[1758705831919,0.51658093,4181.1,4181.0,3.965]
[1758705837823,0.51658093,4181.1,4180.8,2.6376646]
[1758705838028,0.51558093,4181.0,4180.9,4.2058]
[1758705840638,0.51558093,4181.0,4180.9,6.59762951]
[1758705841005,0.51558093,4181.0,4180.9,7.06202951]
[1758705841736,0.51558093,4181.0,4180.9,12.72925142]
[1758705841934,0.51558093,4181.0,4180.9,12.84845142]
[1758705842303,0.001,4181.1,4180.9,2.51102951]
[1758705842552,0.51646818,4181.0,4180.9,2.51102951]
[1758705842739,0.51646818,4181.0,4180.9,14.84975142]
[1758705842940,0.001,4181.1,4181.0,2.3917723]
[1758705843255,0.51666894,4181.1,4181.0,3.1052723]
[1758705844948,0.0002,4181.1,4181.0,3.1052723]
[1758705851066,0.0002,4181.1,4181.0,3.62234836]
[1758705851874,0.0002,4181.1,4181.0,6.62234836]
[1758705857405,0.0002,4181.1,4181.0,3.62234836]
[1758705858983,0.0002,4181.1,4181.0,4.09658226]
[1758705860115,0.0002,4181.1,4181.0,4.10058226]
[1758705860414,0.0002,4181.1,4181.0,3.38708226]
[1758705860707,0.0002,4181.1,4181.0,9.57608226]
[1758705860910,0.0002,4181.1,4181.0,10.03168226]
[1758705863737,0.0002,4181.1,4181.0,2.91284836]
[1758705863939,0.0002,4181.1,4181.0,14.53607027]
[1758705864307,0.0002,4181.1,4181.0,14.76907027]
[1758705867303,0.0002,4181.1,4181.0,15.54407027]
[1758705867503,0.6817,4181.1,4181.0,2.91284836]
[1758705867716,0.6817,4181.1,4181.0,8.86884836]
[1758705867917,0.6817,4181.1,4181.0,11.86884836]
[1758705868433,0.0002,4181.1,4181.0,11.86884836]
[1758705870358,0.001,4181.4,4181.1,3.0]
[1758705870556,0.001,4181.4,4181.2,3.964]
[1758705870924,0.4384,4181.3,4181.2,6.964]
[1758705871449,0.4384,4181.3,4181.2,9.35565789]
[1758705872062,0.4384,4181.3,4181.2,6.35565789]
[1758705872238,0.6815,4181.3,4181.2,6.35565789]
[1758705872682,0.6815,4181.3,4181.2,3.964]
[1758705872953,0.6815,4181.3,4181.2,6.35565789]
[1758705873727,0.4384,4181.3,4181.2,3.964]
[1758705873929,0.6815,4181.3,4181.2,3.964]
[1758705874363,0.6815,4181.3,4181.2,6.35565789]
[1758705874522,0.001,4181.4,4181.3,2.39160069]
[1758705876687,0.001,4181.4,4181.3,8.34760069]
[1758705877510,0.001,4181.4,4181.3,8.46680069]
[1758705879513,0.001,4181.4,4181.3,2.51080069]
[1758705879919,0.001,4181.4,4181.3,8.47380069]
[1758705882342,0.4393,4181.4,4181.3,8.47380069]
[1758705882639,0.001,4181.4,4181.3,8.47380069]
[1758705884007,0.6848,4181.4,4181.3,8.47380069]
[1758705884719,0.001,4181.4,4181.3,8.47380069]
[1758705885221,0.001,4181.4,4181.3,9.18860069]
[1758705885842,0.001,4181.4,4181.3,8.71810069]
[1758705887213,0.001,4181.4,4181.3,2.75510069]
[1758705887413,0.001,4181.4,4181.3,8.71810069]
[1758705889139,0.001,4181.4,4181.3,8.47380069]
[1758705889341,0.001,4181.4,4181.3,8.71810069]
[1758705897358,0.0002,4181.4,4181.3,8.71810069]
[1758705898858,0.0002,4181.4,4181.3,8.47380069]
[1758705903174,0.0002,4181.4,4181.3,8.70960069]
[1758705904074,0.0002,4181.4,4181.3,9.18340069]
[1758705904369,0.0002,4181.4,4181.3,8.70960069]
[1758705906034,0.0002,4181.4,4181.3,9.18340069]
[1758705906775,1.22729501,4181.4,4181.3,5.961]
[1758705915587,0.51729501,4181.4,4181.3,5.961]
[1758705915881,0.51729501,4181.4,4181.3,9.01140069]
[1758705915882,0.0002,4181.4,4181.3,9.01140069]
[1758705916089,0.0002,4181.4,4181.3,3.05040069]
[1758705916251,0.0002,4181.4,4181.3,9.01140069]
[1758705917961,0.0002,4181.4,4181.3,9.13060069]
[1758705924491,0.0004,4181.5,4181.4,2.3915435]
[1758705924791,0.0004,4181.5,4181.4,3.0503435]
[1758705925099,0.0004,4181.5,4181.4,3.14619791]
[1758705926981,0.0004,4181.5,4181.4,2.48739791]
[1758705927182,0.6963,4181.5,4181.4,2.48739791]
[1758705927510,0.6963,4181.5,4181.4,8.44739791]
[1758705929106,0.4493,4181.5,4181.4,8.44739791]
[1758705929724,0.0004,4181.5,4181.4,8.44739791]
[1758705932512,0.0004,4181.5,4181.4,2.48739791]
[1758705932696,0.0004,4181.5,4181.4,8.79249791]
[1758705935532,0.6963,4181.5,4181.4,2.08785441]
[1758705935828,0.6963,4181.5,4181.4,4.3835435]
[1758705936005,0.6963,4181.5,4181.4,5.96]
[1758705938722,0.4493,4181.5,4181.4,8.3515435]
[1758705938897,0.0004,4181.5,4181.4,8.5774435]
[1758705941848,0.0004,4181.5,4181.4,8.3515435]
[1758705942707,0.0004,4181.5,4181.4,8.5828435]
[1758705943308,0.0004,4181.5,4181.4,9.0532435]
[1758705944247,0.0004,4181.5,4181.4,8.7020435]
[1758705944947,0.0004,4181.5,4181.4,9.1724435]
[1758705945842,0.0004,4181.5,4181.4,8.7020435]
[1758705946043,0.0004,4181.5,4181.4,9.1724435]
[1758705951752,0.0006,4181.6,4181.5,2.3914863]
[1758705951924,0.0006,4181.6,4181.5,2.6227863]
[1758705952126,0.0006,4181.6,4181.5,8.7019863]
[1758705952553,0.0006,4181.6,4181.5,8.79784071]
[1758705953451,0.0006,4181.6,4181.5,9.26824071]
[1758705953641,0.0006,4181.6,4181.5,8.79784071]
[1758705953843,0.0006,4181.6,4181.5,9.26824071]
[1758705954154,0.0006,4181.6,4181.5,8.79784071]
[1758705954523,0.0006,4181.6,4181.5,14.46179519]
[1758705954852,0.0006,4181.6,4181.5,2.60654071]
[1758705955056,0.0006,4181.6,4181.5,9.53721098]
[1758705956937,0.0006,4181.6,4181.5,10.00761098]
[1758705958756,0.0006,4181.6,4181.5,9.53721098]
[1758705967764,0.0006,4181.6,4181.5,10.00681098]
[1758705967962,0.0006,4181.6,4181.5,13.00681098]
[1758705971667,0.0006,4181.6,4181.5,10.31291098]
[1758705971843,0.0006,4181.6,4181.5,12.30491098]
[1758705972269,0.0006,4181.6,4181.5,13.01081098]
[1758705974049,0.0006,4181.6,4181.5,11.01781098]